fUSD/lending_fUSD_20240915
["ID","MTS","AMOUNT","RATE_DAILY","PERIOD"]
[338187421,1726378257968,-736.29,0.00013272,2]
[338187422,1726378257978,-500.0,0.00013272,2]
[338187423,1726378257988,-531.63,0.00013272,2]
[338187424,1726378257999,-500.0,0.00013272,2]
[338187425,1726378258010,-577.33644979,0.00013272,2]
[338187426,1726378258020,-151.0,0.00013272,2]
[338187427,1726378258031,-1450.73,0.00013272,2]
[338187428,1726378258041,-862.83,0.00013272,2]
[338187429,1726378258051,-500.0,0.00013272,2]
[338187430,1726378258063,-1803.4,0.00013272,2]
[338187431,1726378258072,-500.0,0.00013272,2]
[338187432,1726378258082,-500.0,0.00013272,2]
[338187433,1726378258093,-2089.4,0.00013272,2]
[338187434,1726378258103,-629.05,0.00013272,2]
[338187435,1726378258112,-500.0,0.00013272,2]
[338187436,1726378258123,-500.0,0.00013272,2]
[338187437,1726378258133,-500.0,0.00013272,2]
[338187438,1726378258143,-500.0,0.00013272,2]
[338187439,1726378258399,-1486.52,0.00013272,2]
[338187440,1726378258408,-500.0,0.00013272,2]
[338187441,1726378258418,-500.0,0.00013272,2]
[338187442,1726378258428,-500.0,0.00013272,2]
[338187443,1726378258437,-500.0,0.00013272,2]
[338187444,1726378258447,-500.0,0.00013272,2]
[338187445,1726378258456,-500.0,0.00013272,2]
[338187446,1726378258466,-500.0,0.00013272,2]
[338187447,1726378258476,-500.0,0.00013272,2]
[338187448,1726378258486,-500.0,0.00013272,2]
[338187449,1726378258495,-229.16526589,0.00013272,2]
[338187450,1726378258504,-500.0,0.00013272,2]
[338187451,1726378258513,-500.0,0.00013272,2]
[338187452,1726378258523,-500.0,0.00013272,2]
[338187453,1726378258532,-500.0,0.00013272,2]
[338187454,1726378258541,-500.0,0.00013272,2]
[338187455,1726378258550,-500.0,0.00013272,2]
[338187456,1726378258560,-500.0,0.00013272,2]
[338187457,1726378258569,-906.13,0.00013272,2]
[338187458,1726378258578,-1034.63,0.00013272,2]
[338187459,1726378258587,-151.0,0.00013272,2]
[338187460,1726378258595,-500.0,0.00013272,2]
[338187461,1726378258604,-500.0,0.00013272,2]
[338187462,1726378258614,-500.0,0.00013272,2]
[338187463,1726378258623,-535.73,0.00013272,2]
[338187464,1726378258632,-882.76,0.00013272,2]
[338187465,1726378258641,-952.0,0.00013272,2]
[338187466,1726378258651,-500.0,0.00013272,2]
[338187467,1726378258660,-436.08078912,0.00013272,2]
[338187468,1726378258673,-63.91921088,0.00013272,2]
[338187469,1726378258683,-700.92,0.00013272,2]
[338187470,1726378258691,-500.0,0.00013272,2]
[338187471,1726378258701,-500.0,0.00013272,2]
[338187472,1726378258711,-500.0,0.00013272,2]
[338187473,1726378258720,-500.0,0.00013272,2]
[338187474,1726378258729,-702.5,0.00013272,2]
[338187475,1726378258738,-929.07,0.00013272,2]
[338187476,1726378258747,-150.0,0.00013272,2]
[338187477,1726378258757,-500.0,0.00013272,2]
[338187478,1726378258766,-883.53,0.00013272,2]
[338187479,1726378258775,-500.0,0.00013272,2]
[338187480,1726378258784,-447.18511237,0.00013272,2]
[338187481,1726378258795,-52.81488763,0.00013272,2]
[338187482,1726378258804,-500.0,0.00013272,2]
[338187483,1726378258813,-205.04152314,0.00013272,2]
[338187484,1726378258825,-294.95847686,0.00013272,2]
[338187485,1726378258833,-826.02,0.00013272,2]
[338187486,1726378258843,-500.0,0.00013272,2]
[338187487,1726378258852,-111.29652314,0.00013272,2]
[338187488,1726378258863,-388.70347686,0.00013272,2]
[338187489,1726378258872,-500.0,0.00013272,2]
[338187490,1726378258881,-500.0,0.00013272,2]
[338187491,1726378258890,-583.31,0.00013272,2]
[338187492,1726378258899,-500.0,0.00013272,2]
[338187493,1726378258909,-500.0,0.00013272,2]
[338187494,1726378258918,-500.0,0.00013272,2]
[338187495,1726378258927,-500.0,0.00013272,2]
[338187496,1726378258936,-821.74,0.00013272,2]
[338187497,1726378258945,-500.0,0.00013272,2]
[338187498,1726378258955,-500.0,0.00013272,2]
[338187499,1726378258964,-500.0,0.00013272,2]
[338187500,1726378258973,-631.69,0.00013272,2]
[338187501,1726378258983,-500.0,0.00013272,2]
[338187502,1726378258992,-500.0,0.00013272,2]
[338187503,1726378259001,-500.0,0.00013272,2]
[338187504,1726378259012,-500.0,0.00013272,2]
[338187505,1726378259030,-707.2,0.00013272,2]
[338187506,1726378259039,-343.55949246,0.00013272,2]
[338187507,1726378259051,-156.44050754,0.00013272,2]
[338187508,1726378259061,-500.0,0.00013272,2]
[338187509,1726378259070,-164.96552546,0.00013272,2]
[338187510,1726378259081,-335.03447454,0.00013272,2]
[338187511,1726378259091,-500.0,0.00013272,2]
[338187512,1726378259100,-406.51783494,0.00013272,2]
[338187513,1726378259111,-321.66216506,0.00013272,2]
[338187514,1726378259121,-500.0,0.00013272,2]
[338187515,1726378259131,-1213.85,0.00013272,2]
[338187516,1726378259140,-580.37,0.00013272,2]
[338187517,1726378259149,-582.84,0.00013272,2]
[338187518,1726378259159,-114.8869479,0.00013272,2]
[338187519,1726378259170,-1116.0730521,0.00013272,2]
[338187520,1726378259179,-1079.35,0.00013272,2]
[338187521,1726378259188,-500.0,0.00013272,2]
[338187522,1726378259198,-1719.37,0.00013272,2]
[338187523,1726378259207,-541.24,0.00013272,2]
[338187524,1726378259216,-528.89782068,0.00013272,2]
[338187525,1726378259226,-1594.05,0.00013272,2]
[338187526,1726378259237,-500.0,0.00013272,2]
[338187527,1726378259246,-500.0,0.00013272,2]
[338187528,1726378259255,-2558.06,0.00013272,2]
[338187529,1726378259264,-1048.46,0.00013272,2]
[338187530,1726378259277,-500.0,0.00013272,2]
[338187531,1726378259286,-500.0,0.00013272,2]
[338187532,1726378259296,-4210.75776172,0.00013272,2]
[338187533,1726378259307,-367.69336575,0.00013272,2]
[338187534,1726378259323,-2927.37522779,0.00013272,2]
[338187535,1726378259335,-448.95942964,0.00013272,2]
[338187536,1726378259346,-936.02511634,0.00013272,2]
[338187537,1726378259358,-369.12270208,0.00013272,2]
[338187538,1726378259369,-1128.06641355,0.00013272,2]
[338187539,1726378259380,-912.45,0.00013272,2]
[338187540,1726378259391,-1164.90682513,0.00013272,2]
[338187541,1726378259402,-9706.783158,0.00013272,2]
[338187542,1726378259412,-327.30531294,0.00013272,2]
[338187543,1726378259423,-172.69468706,0.00013272,2]
[338187544,1726378259432,-1806.96,0.00013272,2]
[338187545,1726378259442,-1351.22,0.00013272,2]
[338187546,1726378259451,-500.0,0.00013272,2]
[338187547,1726378259460,-947.55,0.00013272,2]
[338187548,1726378259469,-675.66,0.00013272,2]
[338187549,1726378259480,-4166.66,0.00013272,2]
[338187550,1726378259490,-1293.75,0.00013272,2]
[338187551,1726378259499,-3064.28,0.00013272,2]
[338187552,1726378259528,-2356.64,0.00013272,2]
[338187553,1726378259538,-500.0,0.00013272,2]
[338187554,1726378259547,-75.16099709,0.00013272,2]
[338187555,1726378259558,-833.87987711,0.00013272,2]
[338187556,1726378259569,-348.3491258,0.00013272,2]
[338187557,1726378259578,-800.72315992,0.00013272,2]
[338187558,1726378259589,-253.77684008,0.00013272,2]
[338187559,1726378259598,-232.40815993,0.00013272,2]
[338187560,1726378259609,-1559.45168708,0.00013272,2]
[338187561,1726378259620,-273.88727203,0.00013272,2]
[338187562,1726378259631,-1146.82366185,0.00013272,2]
[338187563,1726378259658,-875.95,0.00012996,2]
[338187564,1726378259667,-42.3987726,0.00013272,2]
[338187565,1726378259770,-175.03044651,0.00013272,2]
[338187566,1726378259780,-1071.81149984,0.00013272,2]
[338187567,1726378259790,-5081.85000125,0.00013272,2]
[338187568,1726378260362,-4526.756931,0.00013272,2]
[338187569,1726378260383,-567.63859501,0.000132,2]
[338187570,1726378261447,-348.93140499,0.000132,2]
[338187571,1726378261456,-329.16209668,0.0001327,2]
[338187572,1726378261498,-450.0,0.0001327,2]
[338187573,1726378261512,-96.78790332,0.0001327,2]
[338187574,1726378261528,-802.20732056,0.00013272,2]
[338187575,1726378261540,-929.98424735,0.00013272,2]
[338187576,1726378261549,-164.94515249,0.00013272,2]
[338187577,1726378261560,-1346.35809449,0.00013272,2]
[338187578,1726378261571,-2420.51675302,0.00013272,2]
[338187579,1726378261580,-978.28,0.00013272,2]
[338187580,1726378261589,-500.0,0.00013272,2]
[338187581,1726378261598,-500.0,0.00013272,2]
[338187582,1726378261607,-2988.7,0.00013272,2]
[338187583,1726378261616,-500.0,0.00013272,2]
[338187584,1726378261625,-140.13967149,0.00013272,2]
[338187585,1726378261636,-321.8,0.00013272,2]
[338187586,1726378261651,-38.06032851,0.00013272,2]
[338187587,1726378261661,-514.8,0.00013272,2]
[338187588,1726378261670,-2095.91,0.00013272,2]
[338187589,1726378261679,-858.37,0.00013272,2]
[338187590,1726378261688,-881.96,0.00013272,2]
[338187591,1726378261697,-632.36,0.00013272,2]
[338187592,1726378261707,-783.94,0.00013272,2]
[338187593,1726378261716,-161.1572461,0.00013272,2]
[338187594,1726378261732,-277.38,0.00012999,2]
[338187595,1726378261956,-222.62,0.00012999,2]
[338187596,1726378261966,-338.8427539,0.00013272,2]
[338187597,1726378261975,-500.0,0.00013272,2]
[338187598,1726378261984,-947.66880657,0.00013272,2]
[338187599,1726378261995,-387.7317709,0.00013272,2]
[338187600,1726378262011,-664.37942253,0.00013272,2]
[338187601,1726378262020,-500.0,0.00013272,2]
[338187602,1726378262030,-2297.45,0.00013272,2]
[338187603,1726378262039,-209.37590127,0.00013272,2]
[338187604,1726378262052,-1788.63600368,0.00013272,2]
[338187605,1726378262064,-463.87809505,0.00013272,2]
[338187606,1726378262073,-647.7,0.00013272,2]
[338187607,1726378262084,-1080.42,0.00013272,2]
[338187608,1726378262094,-500.0,0.00013272,2]
[338187609,1726378262104,-384.63599411,0.00013272,2]
[338187610,1726378262117,-1001.54413324,0.00013272,2]
[338187611,1726378262129,-965.53987265,0.00013272,2]
[338187612,1726378262140,-708.00428601,0.00013272,2]
[338187613,1726378262153,-175.26571399,0.00013272,2]
[338187614,1726378262163,-500.0,0.00013272,2]
[338187615,1726378262172,-1105.69,0.00013272,2]
[338187616,1726378262182,-873.99323617,0.00013272,2]
[338187617,1726378262194,-248.83676383,0.00013272,2]
[338187618,1726378262204,-108.04689089,0.00013272,2]
[338187619,1726378262215,-391.95310911,0.00013272,2]
[338187620,1726378262225,-75.61652409,0.00013272,2]
[338187621,1726378262237,-850.21347591,0.00013272,2]
[338187622,1726378262247,-644.60689494,0.00013272,2]
[338187623,1726378262258,-360.56310506,0.00013272,2]
[338187624,1726378262268,-500.0,0.00013272,2]
[338187625,1726378262280,-39.52689494,0.00013272,2]
[338187626,1726378262291,-315.43701329,0.00013272,2]
[338187627,1726378262303,-566.95609177,0.00013272,2]
[338187628,1726378262312,-38.22111064,0.00013272,2]
[338187629,1726378262325,-2327.43888936,0.00013272,2]
[338187630,1726378262335,-500.0,0.00013272,2]
[338187631,1726378262344,-1509.58,0.00013272,2]
[338187632,1726378262354,-3879.71,0.00013272,2]
[338187633,1726378262363,-500.0,0.00013272,2]
[338187634,1726378262372,-620.93,0.00013272,2]
[338187635,1726378262382,-500.0,0.00013272,2]
[338187636,1726378262392,-500.0,0.00013272,2]
[338187637,1726378262401,-500.0,0.00013272,2]
[338187638,1726378262411,-740.37,0.00013272,2]
[338187639,1726378262420,-500.0,0.00013272,2]
[338187640,1726378262430,-500.0,0.00013272,2]
[338187641,1726378262439,-2422.58,0.00013272,2]
[338187642,1726378262448,-500.0,0.00013272,2]
[338187643,1726378262458,-642.87,0.00013272,2]
[338187644,1726378262468,-1290.79,0.00013272,2]
[338187645,1726378262478,-1053.07,0.00013272,2]
[338187646,1726378262487,-500.0,0.00013272,2]
[338187647,1726378262497,-500.0,0.00013272,2]
[338187648,1726378262507,-500.0,0.00013272,2]
[338187649,1726378262517,-1319.21,0.00013272,2]
[338187650,1726378262526,-500.0,0.00013272,2]
[338187651,1726378262536,-912.98,0.00013272,2]
[338187652,1726378262545,-1441.06,0.00013272,2]
[338187653,1726378262554,-666.73,0.00013272,2]
[338187654,1726378262564,-911.86,0.00013272,2]
[338187655,1726378262573,-500.0,0.00013272,2]
[338187656,1726378262583,-500.0,0.00013272,2]
[338187657,1726378262592,-500.0,0.00013272,2]
[338187658,1726378262601,-500.0,0.00013272,2]
[338187659,1726378262611,-1869.26,0.00013272,2]
[338187660,1726378262623,-640.72,0.00013272,2]
[338187661,1726378262634,-2222.11,0.00013272,2]
[338187662,1726378262644,-3693.81,0.00013272,2]
[338187663,1726378262653,-672.44,0.00013272,2]
[338187664,1726378262663,-1054.88,0.00013272,2]
[338187665,1726378262673,-3397.89,0.00013272,2]
[338187666,1726378262682,-500.0,0.00013272,2]
[338187667,1726378262693,-659.11,0.00013272,2]
[338187668,1726378262703,-1705.31,0.00013272,2]
[338187669,1726378262714,-1281.894105,0.00013272,2]
[338187670,1726378262724,-1281.894105,0.00013272,2]
[338187671,1726378262734,-924.19,0.00013272,2]
[338187672,1726378262744,-777.24,0.00013272,2]
[338187673,1726378262755,-500.0,0.00013272,2]
[338187674,1726378262766,-2857.4139344,0.00013272,2]
[338187675,1726378262779,-1222.58142477,0.00013272,2]
[338187676,1726378262791,-862.37464083,0.00013272,2]
[338187677,1726378262801,-2368.38,0.00013272,2]
[338187678,1726378262812,-176.87824736,0.00013272,2]
[338187679,1726378262833,-749.95,0.00012999,2]
[338187680,1726378262845,-742.59175264,0.00013272,2]
[338187681,1726378262855,-500.0,0.00013272,2]
[338187682,1726378262866,-1008.37,0.00013272,2]
[338187683,1726378262876,-634.15,0.00013272,2]
[338187684,1726378262887,-1254.87,0.00013272,2]
[338187685,1726378262897,-5851.77,0.00013272,2]
[338187686,1726378262907,-500.0,0.00013272,2]
[338187687,1726378262916,-40.65144675,0.00013272,2]
[338187688,1726378262928,-2031.75855325,0.00013272,2]
[338187689,1726378262938,-501.82437295,0.00013273,2]
[338187690,1726378262948,-353.1670718,0.00013273,2]
[338187691,1726378262961,-146.8329282,0.00013273,2]
[338187692,1726378262971,-136.68427555,0.00013273,2]
[338187693,1726378262982,-361.43277495,0.00013273,2]
[338187694,1726378262993,-1.8829495,0.00013273,2]
[338187695,1726378263003,-500.0,0.00013273,2]
[338187696,1726378263013,-500.0,0.00013273,2]
[338187697,1726378263022,-500.0,0.00013273,2]
[338187698,1726378263031,-500.0,0.00013273,2]
[338187699,1726378263041,-500.0,0.00013273,2]
[338187700,1726378263051,-500.0,0.00013273,2]
[338187701,1726378263060,-500.0,0.00013273,2]
[338187702,1726378263070,-281.30057719,0.00013273,2]
[338187703,1726378263082,-218.69942281,0.00013273,2]
[338187704,1726378263092,-500.0,0.00013273,2]
[338187705,1726378263102,-346.00401613,0.00013273,2]
[338187706,1726378263113,-500.0,0.00013273,2]
[338187707,1726378263123,-500.0,0.00013273,2]
[338187708,1726378263133,-500.0,0.00013273,2]
[338187709,1726378263143,-500.0,0.00013273,2]
[338187710,1726378263153,-548.23204842,0.00013273,2]
[338187711,1726378263163,-500.0,0.00013273,2]
[338187712,1726378263173,-500.0,0.00013273,2]
[338187713,1726378263183,-430.95277654,0.00013273,2]
[338187714,1726378263194,-500.0,0.00013273,2]
[338187715,1726378263203,-382.30883453,0.00013273,2]
[338187716,1726378263213,-500.0,0.00013273,2]
[338187717,1726378263222,-500.0,0.00013273,2]
[338187718,1726378263232,-500.0,0.00013273,2]
[338187719,1726378263241,-500.0,0.00013273,2]
[338187720,1726378263251,-500.0,0.00013273,2]
[338187721,1726378263262,-500.0,0.00013273,2]
[338187722,1726378263273,-500.0,0.00013273,2]
[338187723,1726378263285,-500.0,0.00013273,2]
[338187724,1726378263296,-500.0,0.00013273,2]
[338187725,1726378263306,-500.0,0.00013273,2]
[338187726,1726378263316,-500.0,0.00013273,2]
[338187727,1726378263326,-500.0,0.00013273,2]
[338187728,1726378263336,-919.04,0.00013273,2]
[338187729,1726378263346,-500.0,0.00013273,2]
[338187730,1726378263355,-500.0,0.00013273,2]
[338187731,1726378263365,-500.0,0.00013273,2]
[338187732,1726378263375,-3265.22,0.00013273,2]
[338187733,1726378263384,-500.0,0.00013273,2]
[338187734,1726378263394,-1332.35,0.00013273,2]
[338187735,1726378263404,-500.0,0.00013273,2]
[338187736,1726378263413,-542.97426333,0.00013273,2]
[338187737,1726378263423,-1152.67,0.00013273,2]
[338187738,1726378263433,-2988.27,0.00013273,2]
[338187739,1726378263444,-500.0,0.00013273,2]
[338187740,1726378263454,-500.0,0.00013273,2]
[338187741,1726378263465,-500.0,0.00013273,2]
[338187742,1726378263475,-500.0,0.00013273,2]
[338187743,1726378263485,-500.0,0.00013273,2]
[338187744,1726378263495,-500.0,0.00013273,2]
[338187745,1726378263505,-1840.68,0.00013273,2]
[338187746,1726378263516,-500.0,0.00013273,2]
[338187747,1726378263526,-1447.82,0.00013273,2]
[338187748,1726378263536,-500.0,0.00013273,2]
[338187749,1726378263546,-500.0,0.00013273,2]
[338187750,1726378263556,-939.39,0.00013273,2]
[338187751,1726378263565,-500.0,0.00013273,2]
[338187752,1726378263575,-500.0,0.00013273,2]
[338187753,1726378263584,-500.0,0.00013273,2]
[338187754,1726378263594,-337.69484592,0.00013273,2]
[338187755,1726378263604,-865.77,0.00013273,2]
[338187756,1726378263614,-500.0,0.00013273,2]
[338187757,1726378263624,-500.0,0.00013273,2]
[338187758,1726378263634,-941.64272496,0.00013273,2]
[338187759,1726378263648,-550.44950002,0.00013273,2]
[338187760,1726378263660,-441.29777502,0.00013273,2]
[338187761,1726378263669,-190.07761115,0.00013273,2]
[338187762,1726378263680,-309.92238885,0.00013273,2]
[338187763,1726378263690,-499.04900722,0.00013273,2]
[338187764,1726378263706,-0.95099278,0.00013273,2]
[338187765,1726378263716,-528.72,0.00013273,2]
[338187766,1726378263725,-466.69871876,0.00013273,2]
[338187767,1726378263738,-33.30128124,0.00013273,2]
[338187768,1726378263748,-385.54825443,0.00013273,2]
[338187770,1726378419072,500.0,0.00012,2]
[338187771,1726378432862,162.7,0.00012286,2]
[338187772,1726378461719,200.16,0.00012261,2]
[338187773,1726378465052,250.0,0.00012252,2]
[338187774,1726378623303,155.49,0.00010959,2]
[338187775,1726378740563,840.0,0.00012247,2]
[338187777,1726378763248,261.76,0.00010307,2]
[338187778,1726378763449,261.76,0.0001257,2]
[338187780,1726378970222,200.16,0.0001218,2]
[338187781,1726379029900,250.0,0.000122,2]
[338187782,1726379079306,354.24,0.00012133,2]
[338187783,1726379159932,155.01,0.00010959,2]
[338187784,1726379237905,328.0,0.00012115,2]
[338187785,1726379251742,251.22,0.00010197,2]
[338187786,1726379251971,251.22,0.00012461,2]
[338187800,1726379431642,-150.0,0.00012894,2]
[338187802,1726379431652,-300.0,0.00012894,2]
[338187804,1726379431662,-781.85132041,0.00012895,2]
[338187806,1726379431673,-311.84172578,0.00012895,2]
[338187808,1726379431685,-833.36001832,0.00012895,2]
[338187810,1726379431697,-696.93784984,0.00012895,2]
[338187812,1726379431709,-564.981698,0.00012895,2]
[338187822,1726379431814,-9423.99800782,0.00012895,2]
[338187823,1726379431826,-500.0,0.00012895,2]
[338187824,1726379431905,-13648.14304269,0.00012895,2]
[338187825,1726379431916,-8240.2717807,0.00012895,2]
[338187826,1726379431925,-540.84846998,0.00012895,2]
[338187827,1726379431935,-1665.33866486,0.00012895,2]
[338187828,1726379431944,-1123.4572,0.00012896,2]
[338187829,1726379431953,-2117.5066,0.00012896,2]
[338187830,1726379431962,-475.3993,0.00012896,2]
[338187831,1726379431971,-594.7449,0.00012896,2]
[338187832,1726379431980,-1302.419,0.00012896,2]
[338187833,1726379431989,-1556.4245,0.00012896,2]
[338187834,1726379431998,-272.8281,0.00012896,2]
[338187835,1726379432007,-339.7032,0.00012896,2]
[338187836,1726379432016,-159.89920306,0.00012897,2]
[338187837,1726379432025,-296.37866446,0.00012897,2]
[338187838,1726379432034,-158.56691586,0.00012898,2]
[338187839,1726379432043,-296.37866446,0.00012898,2]
[338187840,1726379432053,-4546.94216423,0.000129,2]
[338187842,1726379432062,-371.99471297,0.00012973,2]
[338187844,1726379432071,-500.0,0.00012973,2]
[338187845,1726379432080,-500.0,0.00012973,2]
[338187846,1726379432090,-150.72,0.00012985,2]
[338187847,1726379432099,-499.99,0.00012987,2]
[338187848,1726379432108,-1085.36,0.00012994,2]
[338187849,1726379432117,-1858.68,0.00012994,2]
[338187850,1726379432126,-1698.45,0.00012994,2]
[338187851,1726379432355,-500.0,0.00012994,2]
[338187852,1726379432366,-2307.01,0.00012994,2]
[338187853,1726379432377,-2157.82,0.00012994,2]
[338187854,1726379432386,-500.0,0.00012994,2]
[338187855,1726379432396,-3517.22,0.00012994,2]
[338187856,1726379432405,-2212.75,0.00012994,2]
[338187857,1726379432415,-500.0,0.00012994,2]
[338187858,1726379432425,-500.0,0.00012994,2]
[338187859,1726379432434,-500.0,0.00012994,2]
[338187860,1726379432445,-2038.62,0.00012994,2]
[338187861,1726379432454,-2681.86,0.00012994,2]
[338187862,1726379432464,-1148.88,0.00012994,2]
[338187863,1726379432473,-1187.63,0.00012994,2]
[338187864,1726379432483,-1625.64,0.00012994,2]
[338187865,1726379432492,-2078.94,0.00012994,2]
[338187866,1726379432502,-500.0,0.00012994,2]
[338187867,1726379432511,-537.43,0.00012994,2]
[338187868,1726379432520,-500.0,0.00012994,2]
[338187869,1726379432530,-502.45,0.00012994,2]
[338187870,1726379432539,-500.0,0.00012994,2]
[338187871,1726379432549,-1779.09,0.00012994,2]
[338187872,1726379432558,-500.0,0.00012994,2]
[338187873,1726379432567,-667.72,0.00012994,2]
[338187874,1726379432576,-500.0,0.00012994,2]
[338187875,1726379432586,-500.0,0.00012994,2]
[338187876,1726379432595,-500.0,0.00012994,2]
[338187877,1726379432604,-500.0,0.00012994,2]
[338187878,1726379432613,-708.3,0.00012994,2]
[338187879,1726379432622,-1087.38,0.00012994,2]
[338187880,1726379432632,-500.0,0.00012994,2]
[338187881,1726379432655,-500.0,0.00012994,2]
[338187882,1726379432665,-500.0,0.00012994,2]
[338187883,1726379432674,-543.62,0.00012994,2]
[338187884,1726379432683,-500.0,0.00012994,2]
[338187885,1726379432695,-2096.77,0.00012994,2]
[338187886,1726379432704,-500.0,0.00012994,2]
[338187887,1726379432713,-500.0,0.00012994,2]
[338187888,1726379432723,-500.0,0.00012994,2]
[338187889,1726379432732,-1590.3,0.00012994,2]
[338187890,1726379432742,-2727.92,0.00012994,2]
[338187891,1726379432751,-1405.66,0.00012994,2]
[338187892,1726379432761,-500.0,0.00012994,2]
[338187893,1726379432770,-2439.56,0.00012994,2]
[338187894,1726379432779,-500.0,0.00012994,2]
[338187895,1726379432789,-500.0,0.00012994,2]
[338187896,1726379432798,-957.53,0.00012994,2]
[338187897,1726379432807,-500.0,0.00012994,2]
[338187898,1726379432816,-1408.85,0.00012994,2]
[338187899,1726379432825,-500.0,0.00012994,2]
[338187900,1726379432834,-500.0,0.00012994,2]
[338187901,1726379432843,-2418.25,0.00012994,2]
[338187902,1726379432852,-2076.88,0.00012994,2]
[338187903,1726379432861,-500.0,0.00012994,2]
[338187904,1726379432871,-500.0,0.00012994,2]
[338187905,1726379432880,-500.0,0.00012994,2]
[338187906,1726379432890,-1146.07,0.00012994,2]
[338187907,1726379432899,-500.0,0.00012994,2]
[338187908,1726379432909,-500.0,0.00012994,2]
[338187909,1726379432918,-1765.34,0.00012994,2]
[338187910,1726379432927,-1556.02,0.00012994,2]
[338187911,1726379432936,-500.0,0.00012994,2]
[338187912,1726379432947,-500.0,0.00012994,2]
[338187913,1726379432956,-503.79,0.00012994,2]
[338187914,1726379432966,-1884.38,0.00012994,2]
[338187915,1726379432975,-7775.15,0.00012994,2]
[338187916,1726379432984,-673.69,0.00012994,2]
[338187917,1726379432993,-500.0,0.00012994,2]
[338187918,1726379433002,-500.0,0.00012994,2]
[338187919,1726379433011,-2323.18,0.00012994,2]
[338187920,1726379433020,-500.0,0.00012994,2]
[338187921,1726379433030,-536.38302641,0.00012994,2]
[338187922,1726379433039,-500.0,0.00012994,2]
[338187923,1726379433049,-500.0,0.00012994,2]
[338187924,1726379433059,-2982.65,0.00012994,2]
[338187925,1726379433069,-500.0,0.00012994,2]
[338187926,1726379433078,-1059.49,0.00012994,2]
[338187927,1726379433088,-2219.97168735,0.00012994,2]
[338187928,1726379433101,-213.37831265,0.00012994,2]
[338187929,1726379433110,-506.75,0.00012994,2]
[338187930,1726379433120,-151.30678603,0.00012994,2]
[338187931,1726379433129,-843.2910191,0.00012994,2]
[338187932,1726379433141,-332.75527609,0.00012994,2]
[338187933,1726379433152,-821.75370481,0.00012994,2]
[338187934,1726379433162,-577.16,0.00012994,2]
[338187935,1726379433171,-740.76,0.00012994,2]
[338187936,1726379433181,-500.0,0.00012994,2]
[338187937,1726379433190,-1273.29,0.00012994,2]
[338187938,1726379433200,-500.0,0.00012994,2]
[338187939,1726379433209,-500.0,0.00012994,2]
[338187940,1726379433218,-500.0,0.00012994,2]
[338187941,1726379433227,-1068.75,0.00012994,2]
[338187942,1726379433236,-500.0,0.00012994,2]
[338187943,1726379433245,-500.0,0.00012994,2]
[338187944,1726379433255,-500.0,0.00012994,2]
[338187945,1726379433264,-1648.01,0.00012994,2]
[338187946,1726379433273,-1064.85,0.00012994,2]
[338187947,1726379433282,-551.38,0.00012994,2]
[338187948,1726379433292,-500.0,0.00012995,2]
[338187949,1726379433302,-500.0,0.00012995,2]
[338187950,1726379433311,-1653.33,0.00012995,2]
[338187951,1726379433320,-500.0,0.00012995,2]
[338187952,1726379433329,-500.0,0.00012995,2]
[338187953,1726379433338,-500.0,0.00012995,2]